bitfinex/quotes_BTCUSD_20240730
["timestamp","ask_amount","ask_price","bid_price","bid_amount"]
[1722306286756,0.72578497,66168.0,66167.0,0.5940661]
[1722306287071,0.74949235,66168.0,66167.0,0.5940661]
[1722306287276,0.73549235,66168.0,66167.0,0.5940661]
[1722306287483,0.72733917,66168.0,66167.0,0.5940661]
[1722306287900,0.72578497,66168.0,66167.0,0.5940661]
[1722306288225,0.71178497,66168.0,66167.0,0.5940661]
[1722306288430,0.65803951,66168.0,66167.0,0.5940661]
[1722306289171,0.65959371,66168.0,66167.0,0.5940661]
[1722306289391,0.7393929,66168.0,66167.0,0.5940661]
[1722306289586,0.7378387,66168.0,66167.0,0.5940661]
[1722306290013,0.65803951,66168.0,66167.0,0.5940661]
[1722306290196,0.64403951,66168.0,66167.0,0.5940661]
[1722306290411,0.72484314,66168.0,66167.0,0.5940661]
[1722306290611,0.83048734,66168.0,66167.0,0.5940661]
[1722306290808,0.66774684,66168.0,66167.0,0.5940661]
[1722306291125,0.7249546,66168.0,66167.0,0.5940661]
[1722306291325,1.0488847,66168.0,66167.0,0.5940661]
[1722306291527,0.83913098,66168.0,66167.0,0.5940661]
[1722306291732,0.80578464,66168.0,66167.0,0.5940661]
[1722306292142,1.21222568,66168.0,66167.0,0.5312661]
[1722306292493,1.19977988,66168.0,66167.0,0.5312661]
[1722306292704,1.18577988,66168.0,66167.0,0.5312661]
[1722306292927,1.19977988,66168.0,66167.0,0.5312661]
[1722306293122,1.3504742,66168.0,66167.0,0.5312661]
[1722306293302,1.3644742,66168.0,66167.0,0.5312661]
[1722306293501,1.35032493,66168.0,66167.0,0.5312661]
[1722306294369,0.83089753,66168.0,66167.0,0.5312661]
[1722306294504,0.74866256,66168.0,66167.0,0.6699661]
[1722306294704,0.66774747,66168.0,66167.0,0.6699661]
[1722306294913,0.40223151,66168.0,66167.0,0.6699661]
[1722306295121,0.48516753,66168.0,66167.0,0.6699661]
[1722306295311,0.40223151,66168.0,66167.0,0.6699661]
[1722306295514,0.41623151,66168.0,66167.0,0.6699661]
[1722306295712,0.64403951,66168.0,66167.0,0.6699661]
[1722306295918,0.71272589,66168.0,66167.0,0.6699661]
[1722306296210,0.71293657,66168.0,66167.0,0.6699661]
[1722306296424,0.64103951,66168.0,66167.0,0.6699661]
[1722306296626,0.72390744,66168.0,66167.0,0.6699661]
[1722306296841,0.71290744,66168.0,66167.0,0.5918661]
[1722306297016,0.83512527,66168.0,66167.0,0.5918661]
[1722306297374,0.80925266,66168.0,66167.0,0.5918661]
[1722306297522,0.80925578,66168.0,66167.0,0.5918661]
[1722306297731,0.85384262,66168.0,66167.0,0.5312661]
[1722306297985,0.95988882,66168.0,66167.0,0.5312661]
[1722306298135,0.96144302,66168.0,66167.0,0.5312661]
[1722306298340,0.97114924,66168.0,66167.0,0.5312661]
[1722306298539,1.2798375,66168.0,66167.0,0.5312661]
[1722306298760,1.2878375,66168.0,66167.0,0.5312661]
[1722306298967,1.2862833,66168.0,66167.0,0.5312661]
[1722306299161,1.2782833,66168.0,66167.0,0.5312661]
[1722306299373,1.38763991,66168.0,66167.0,0.5312661]
[1722306299573,1.33475965,66168.0,66167.0,0.5312661]
[1722306299770,1.32913941,66168.0,66167.0,0.5312661]
[1722306299980,1.31513941,66168.0,66167.0,0.5312661]
[1722306300199,1.04962519,66168.0,66167.0,0.5312661]
[1722306300437,0.58282005,66168.0,66167.0,0.6074661]
[1722306300562,0.05241897,66168.0,66167.0,1.2785961]
[1722306300767,0.05151951,66168.0,66167.0,1.0367841]
[1722306300984,0.03751951,66168.0,66167.0,1.0367841]
[1722306301184,0.03751951,66168.0,66167.0,0.6740661]
[1722306301409,0.41623151,66168.0,66167.0,0.6740661]
[1722306301581,0.02751951,66168.0,66167.0,0.6740661]
[1722306301783,0.02951951,66168.0,66167.0,0.6740661]
[1722306301967,0.03651951,66168.0,66167.0,0.6740661]
[1722306302370,0.02351951,66168.0,66167.0,0.6740661]
[1722306302568,0.02351951,66168.0,66167.0,0.7949721]
[1722306302774,0.02751951,66168.0,66167.0,0.6740661]
[1722306303102,0.04122351,66168.0,66167.0,0.6740661]
[1722306303307,0.04022351,66168.0,66167.0,0.7949721]
[1722306303484,0.04022351,66168.0,66167.0,1.2785961]
[1722306303485,0.03482424,66168.0,66167.0,1.2785961]
[1722306304087,0.03182424,66168.0,66167.0,1.42922914]
[1722306304288,0.031704,66168.0,66167.0,1.42922914]
[1722306304499,0.031704,66168.0,66167.0,1.79404114]
[1722306304681,0.026704,66168.0,66167.0,2.14100526]
[1722306304881,0.02351951,66177.0,66176.0,0.120889]
[1722306305109,0.02351951,66177.0,66176.0,0.15668248]
[1722306305598,0.02551951,66177.0,66176.0,0.15668248]
[1722306305775,0.02351951,66177.0,66176.0,0.76112948]
[1722306305952,0.01351951,66177.0,66176.0,0.76112948]
[1722306306304,0.00512024,66177.0,66176.0,0.91176252]
[1722306306822,0.02351951,66177.0,66176.0,0.91176252]
[1722306307029,0.02351951,66177.0,66176.0,0.66998352]
[1722306307231,0.02351951,66177.0,66176.0,0.91176252]
[1722306308034,0.00512024,66177.0,66176.0,0.91176252]
[1722306308252,0.02882003,66177.0,66176.0,0.91176252]
[1722306309326,0.07534716,66184.0,66176.0,0.24521552]
[1722306309461,0.00512024,66184.0,66183.0,0.362629]
[1722306309668,0.00512024,66184.0,66183.0,0.76999752]
[1722306309869,0.02351951,66184.0,66183.0,0.67034452]
[1722306310319,0.02351951,66184.0,66183.0,0.91209752]
[1722306310919,0.02351951,66184.0,66183.0,0.51971148]
[1722306311146,0.14439451,66184.0,66183.0,0.15708248]
[1722306311297,0.40078396,66184.0,66183.0,0.01498248]
[1722306311541,0.40078396,66184.0,66167.0,0.5332661]
[1722306311542,0.36780524,66173.0,66172.0,0.0642]
[1722306311752,0.46355167,66173.0,66172.0,0.01498248]
[1722306312367,0.70534167,66173.0,66172.0,0.01498248]
[1722306312567,0.72904504,66173.0,66172.0,0.01498248]
[1722306312780,0.70534167,66173.0,66172.0,0.01498248]
[1722306313142,0.45155167,66173.0,66172.0,0.01498248]
[1722306313341,0.46355167,66173.0,66172.0,0.01498248]
[1722306313906,0.22176167,66173.0,66172.0,0.01498248]
[1722306314110,0.09886667,66173.0,66172.0,0.15558248]
[1722306314414,0.09886667,66173.0,66172.0,0.91070052]
[1722306314415,0.01612024,66173.0,66172.0,0.91070052]
[1722306314561,0.01612024,66173.0,66172.0,0.66890652]
[1722306314562,0.02351951,66173.0,66172.0,0.66890652]
[1722306314972,0.03451951,66173.0,66172.0,0.66890652]
[1722306315176,0.03151951,66173.0,66172.0,0.66890652]
[1722306315377,0.03351951,66173.0,66172.0,0.15558248]
[1722306315578,0.04451951,66173.0,66172.0,0.01498248]
[1722306315782,0.67762416,66173.0,66172.0,0.01498248]
[1722306315958,0.70132854,66173.0,66172.0,0.01498248]
[1722306316158,0.38823151,66168.0,66167.0,0.5312661]
[1722306316374,0.63003951,66168.0,66167.0,0.5312661]
[1722306316576,0.62003951,66168.0,66167.0,0.5312661]
[1722306316763,0.9179987,66168.0,66167.0,0.5312661]
[1722306317183,0.91644476,66168.0,66167.0,0.5312661]
[1722306317493,0.87184751,66168.0,66167.0,0.5312661]
[1722306317729,0.94774339,66168.0,66167.0,0.5312661]
[1722306317935,0.88084751,66168.0,66167.0,0.5312661]
[1722306318049,0.94774339,66168.0,66167.0,0.5312661]
[1722306318489,0.94776288,66168.0,66167.0,0.5312661]
[1722306318688,0.94931708,66168.0,66167.0,0.5312661]
[1722306319130,0.94776288,66168.0,66167.0,0.5312661]
[1722306319711,0.97146935,66168.0,66167.0,0.5312661]
[1722306319895,0.88084751,66168.0,66167.0,0.5312661]
[1722306320095,0.87084751,66168.0,66167.0,0.5312661]
[1722306320345,0.88440171,66168.0,66167.0,0.5312661]
[1722306320515,0.89440171,66168.0,66167.0,0.5312661]
[1722306320714,0.88524171,66168.0,66167.0,0.5312661]
[1722306320951,0.89524171,66168.0,66167.0,0.5312661]
[1722306321194,0.89368751,66168.0,66167.0,0.5312661]
[1722306321508,0.97243621,66168.0,66167.0,0.5312661]
[1722306321755,0.89368751,66168.0,66167.0,0.5312661]
[1722306322336,0.98288201,66168.0,66167.0,0.5312661]
[1722306322537,1.07925228,66168.0,66167.0,0.5312661]
[1722306323022,1.02888708,66168.0,66167.0,0.5312661]
[1722306323224,0.89368751,66168.0,66167.0,0.5312661]
[1722306323719,0.7291836,66168.0,66167.0,0.5312661]
[1722306323847,0.41007151,66168.0,66167.0,0.5312661]
[1722306324048,0.11434018,66168.0,66167.0,0.5312661]
[1722306324231,0.11434018,66168.0,66167.0,0.6800661]
[1722306324232,0.04735951,66168.0,66167.0,0.6800661]
[1722306324436,0.04891371,66168.0,66167.0,0.6800661]
[1722306324641,0.04891371,66168.0,66167.0,0.8009721]
[1722306324841,0.02696024,66168.0,66167.0,1.0427841]
[1722306325067,0.02696024,66168.0,66167.0,1.43522914]
[1722306325297,0.03535951,66168.0,66167.0,1.43522914]
[1722306325503,0.04535951,66168.0,66167.0,1.19341714]
[1722306325765,0.02435951,66168.0,66167.0,1.19341714]
[1722306326043,0.03635951,66168.0,66167.0,1.19341714]
[1722306326192,0.04535951,66168.0,66167.0,1.19341714]
[1722306326391,0.03335951,66168.0,66167.0,1.19341714]
[1722306326634,0.0570625,66168.0,66167.0,1.19341714]
[1722306326893,0.0570625,66168.0,66167.0,1.43522914]
[1722306326894,0.00384,66168.0,66167.0,1.43522914]
[1722306327100,0.00084,66168.0,66167.0,1.67704114]
[1722306327492,0.00384,66168.0,66167.0,1.67704114]
[1722306327632,0.00384,66168.0,66167.0,1.43522914]
[1722306328045,0.02735951,66168.0,66167.0,1.19341714]
[1722306328205,0.02735951,66168.0,66167.0,0.95160514]
[1722306328409,0.02935951,66168.0,66167.0,0.6800661]
[1722306328795,0.02735951,66168.0,66167.0,0.6800661]
[1722306328948,0.15026351,66168.0,66167.0,0.5973661]
[1722306329170,0.02935951,66168.0,66167.0,0.5973661]
[1722306329308,0.15026351,66168.0,66167.0,0.5973661]
[1722306329703,0.02935951,66168.0,66167.0,0.5973661]
[1722306329878,0.02735951,66168.0,66167.0,0.5973661]
[1722306330038,0.15026351,66168.0,66167.0,0.5973661]
[1722306330218,0.17396766,66168.0,66167.0,0.5973661]
[1722306330424,0.39207151,66168.0,66167.0,0.5973661]
[1722306331104,0.14926351,66168.0,66167.0,0.5973661]
[1722306331303,0.02835951,66168.0,66167.0,0.5973661]
[1722306331609,0.02835951,66168.0,66167.0,0.5983661]
[1722306332019,0.02835951,66168.0,66167.0,0.5973661]
[1722306332375,0.02935951,66168.0,66167.0,0.5973661]
[1722306332646,0.02735951,66168.0,66167.0,0.5973661]
[1722306332774,0.03035951,66168.0,66167.0,0.5973661]
[1722306332976,0.02935951,66168.0,66167.0,0.5973661]
[1722306333494,0.15226351,66168.0,66167.0,0.5973661]
[1722306333697,0.1759674,66168.0,66167.0,0.5973661]
[1722306334288,0.4177754,66168.0,66167.0,0.5973661]
[1722306334605,0.4157754,66168.0,66167.0,0.5973661]
[1722306334808,0.72191853,66168.0,66167.0,0.5312661]
[1722306334974,0.72291853,66168.0,66167.0,0.5312661]
[1722306335199,0.12108445,66168.0,66167.0,0.5312661]
[1722306335396,0.0967415,66168.0,66167.0,0.5312661]
[1722306335640,0.0520634,66168.0,66167.0,0.5312661]
[1722306335839,0.0490634,66168.0,66167.0,0.5312661]
[1722306336038,0.0490634,66168.0,66167.0,1.0324841]
[1722306336215,0.0480634,66168.0,66167.0,1.0324841]
[1722306336443,0.0480634,66168.0,66167.0,1.42492914]
[1722306336620,0.03066413,66168.0,66167.0,1.42492914]
[1722306336974,0.03066413,66168.0,66167.0,1.18311714]
[1722306336975,0.02535951,66168.0,66167.0,1.18311714]
[1722306337177,0.02535951,66168.0,66167.0,0.94130514]
[1722306337452,0.02535951,66168.0,66167.0,1.0324841]
[1722306338225,0.00696024,66168.0,66167.0,1.2742961]
[1722306338823,0.00184,66168.0,66167.0,1.42492914]
[1722306339231,0.00596024,66168.0,66167.0,1.42492914]
[1722306339657,0.02435951,66168.0,66167.0,1.42592914]
[1722306339834,0.02435951,66168.0,66167.0,0.94230514]
[1722306340034,0.05306214,66168.0,66167.0,0.5941661]
[1722306340259,0.02835951,66168.0,66167.0,0.5941661]
[1722306340454,0.02435951,66168.0,66167.0,0.5941661]
[1722306340641,0.02635951,66168.0,66167.0,0.5941661]
[1722306340842,0.02635951,66168.0,66167.0,0.7150721]
[1722306341537,0.02635951,66168.0,66167.0,0.7140721]
[1722306341752,0.00896024,66168.0,66167.0,0.9558841]
[1722306342209,0.02735951,66168.0,66167.0,1.10651714]
[1722306342407,0.00796024,66168.0,66167.0,1.10651714]
[1722306342579,0.01196024,66168.0,66167.0,1.34832914]
[1722306343077,0.00284,66168.0,66167.0,1.34832914]
[1722306343276,0.00284,66168.0,66167.0,1.59014114]
[1722306343516,0.00284,66168.0,66167.0,1.59114114]
[1722306343682,0.02654209,66168.0,66167.0,1.59114114]
[1722306343861,0.03054209,66168.0,66167.0,1.59114114]
[1722306344718,0.03054209,66168.0,66167.0,1.59014114]
[1722306344920,0.04054209,66168.0,66167.0,1.59014114]
[1722306345148,0.03454209,66168.0,66167.0,1.34932914]
[1722306345388,0.42531448,66168.0,66167.0,0.5322661]
[1722306345570,0.42531448,66168.0,66167.0,0.5312661]
[1722306345571,0.1589656,66168.0,66167.0,0.5312661]
[1722306345762,0.14726351,66168.0,66167.0,0.5312661]
[1722306346123,0.37907151,66168.0,66167.0,0.5312661]
[1722306346330,0.67715856,66168.0,66167.0,0.5322661]
[1722306346535,0.39062571,66168.0,66167.0,0.5322661]
[1722306346726,0.38907151,66168.0,66167.0,0.5322661]
[1722306347634,0.63087951,66168.0,66167.0,0.5322661]
[1722306347834,0.67560436,66168.0,66167.0,0.5322661]
[1722306348057,0.93977478,66168.0,66167.0,0.5322661]
[1722306348269,0.94638969,66168.0,66167.0,0.5322661]
[1722306348462,0.94548573,66168.0,66167.0,0.5322661]
[1722306348617,0.70367773,66168.0,66167.0,0.5322661]
[1722306348828,0.7931417,66168.0,66167.0,0.5322661]
[1722306349143,0.81684657,66168.0,66167.0,0.5322661]
[1722306349347,0.7173826,66168.0,66167.0,0.5322661]
[1722306349479,0.72845395,66168.0,66167.0,0.5322661]
[1722306349673,0.72845395,66168.0,66167.0,0.5332661]
[1722306349674,0.7273826,66168.0,66167.0,0.5332661]
[1722306350257,1.19205439,66168.0,66167.0,0.5322661]
[1722306350466,0.95024639,66168.0,66167.0,0.5322661]
[1722306350593,0.7273826,66168.0,66167.0,0.5322661]
[1722306350793,0.81686734,66168.0,66167.0,0.5322661]
[1722306350991,0.7273826,66168.0,66167.0,0.5322661]
[1722306351199,0.79451371,66168.0,66167.0,0.5322661]
[1722306351435,0.72171549,66168.0,66167.0,0.5322661]
[1722306351647,0.65658438,66168.0,66167.0,0.5312661]
[1722306351848,0.79816901,66168.0,66167.0,0.5312661]
[1722306352009,0.80016901,66168.0,66167.0,0.5312661]
[1722306352210,0.81854496,66168.0,66167.0,0.5312661]
[1722306352571,0.72904117,66168.0,66167.0,0.5312661]
[1722306352858,0.73704117,66168.0,66167.0,0.5312661]
[1722306353089,0.7133363,66168.0,66167.0,0.5312661]
[1722306353428,0.78047766,66168.0,66167.0,0.5312661]
[1722306353645,0.78128069,66168.0,66167.0,0.5312661]
[1722306353991,0.53866966,66168.0,66167.0,0.5312661]
[1722306354301,0.53977992,66168.0,66167.0,0.5312661]
[1722306354473,0.71444656,66168.0,66167.0,0.5312661]
[1722306354643,0.7133363,66168.0,66167.0,0.5312661]
[1722306355611,0.80287949,66168.0,66167.0,0.5312661]
[1722306356111,0.82658388,66168.0,66167.0,0.5312661]
[1722306356484,0.4715283,66168.0,66167.0,0.5312661]
[1722306356694,0.10960508,66168.0,66167.0,0.5312661]
[1722306356857,0.00962878,66168.0,66167.0,1.10991714]
[1722306357061,0.00884,66168.0,66167.0,1.59354114]
[1722306357260,0.00884,66168.0,66167.0,1.69540258]
[1722306357917,0.00884,66168.0,66167.0,1.59354114]
[1722306358109,0.00884,66168.0,66167.0,1.69563987]
[1722306359375,0.01384,66168.0,66167.0,1.69563987]
[1722306359793,0.03754173,66168.0,66167.0,1.69563987]
[1722306360183,0.04754173,66168.0,66167.0,1.45382787]
[1722306360386,0.03754173,66168.0,66167.0,1.59354114]
[1722306360602,0.03254173,66168.0,66167.0,1.69572562]
[1722306360807,0.00884,66168.0,66167.0,1.59354114]
[1722306361055,0.00984,66168.0,66167.0,1.69884433]
[1722306362496,0.00984,66168.0,66167.0,2.02433682]
[1722306362627,0.00984,66168.0,66167.0,2.04733682]
[1722306362828,0.00984,66168.0,66167.0,2.14733682]
[1722306364226,0.02554004,66168.0,66167.0,2.14733682]
[1722306364616,0.02554004,66168.0,66167.0,1.90592409]
[1722306364815,0.02554004,66168.0,66167.0,1.90392409]
[1722306365056,4e-08,66168.0,66167.0,2.38754809]
[1722306365261,0.08886667,66191.0,66190.0,0.384228]
[1722306365426,0.01507371,66192.0,66191.0,0.362586]
[1722306365661,0.01351951,66192.0,66191.0,0.75494304]
[1722306365838,0.01351951,66192.0,66191.0,0.51321904]
[1722306366038,0.00851951,66192.0,66191.0,0.51321904]
[1722306366193,0.00851951,66192.0,66191.0,0.75494304]
[1722306366401,0.00095024,66199.0,66191.0,0.25063304]
[1722306366742,0.00095024,66199.0,66197.0,0.907657]
[1722306366743,0.00934951,66199.0,66197.0,0.907657]
[1722306366896,0.00095024,66199.0,66197.0,0.83157052]
[1722306367104,0.01934951,66199.0,66197.0,0.83157052]
[1722306367307,0.09386667,66198.0,66197.0,0.01498248]
[1722306367520,0.09386667,66198.0,66197.0,0.13583348]
[1722306367521,0.08386667,66198.0,66197.0,0.13583348]
[1722306367714,0.09586667,66198.0,66197.0,0.13583348]
[1722306368141,0.09686667,66198.0,66197.0,0.02198248]
[1722306368387,0.21771567,66198.0,66197.0,0.02198248]
[1722306368533,0.09486667,66198.0,66197.0,0.02198248]
[1722306368735,0.08386667,66198.0,66197.0,0.13883348]
[1722306368939,0.0764674,66198.0,66197.0,0.84167052]
[1722306369386,0.00112024,66198.0,66197.0,0.84167052]
[1722306369673,0.00112024,66198.0,66197.0,1.08337252]
[1722306369876,0.02481263,66198.0,66197.0,1.08337252]
[1722306370279,0.00112024,66198.0,66197.0,1.08337252]
[1722306370421,0.01951951,66198.0,66197.0,0.84167052]
[1722306370835,0.00112024,66198.0,66197.0,0.84167052]
[1722306371543,0.00112024,66198.0,66197.0,1.08337252]
[1722306371826,9.333e-05,66198.0,66197.0,1.08337252]
[1722306372012,0.00083,66199.0,66198.0,0.60527267]
[1722306372209,0.00922927,66199.0,66198.0,0.77088819]
[1722306372939,0.01922927,66199.0,66198.0,0.77088819]
[1722306373284,0.00922927,66199.0,66198.0,0.77088819]
[1722306373482,0.03292151,66199.0,66198.0,0.53418919]
[1722306373738,0.04292151,66199.0,66198.0,0.53418919]
[1722306373982,0.04292151,66199.0,66198.0,0.53316352]
[1722306373983,0.01820361,66199.0,66198.0,0.53316352]
[1722306375213,1.3912,66214.0,66198.0,0.53316352]
[1722306375214,0.00820361,66213.0,66207.0,0.0613]
[1722306375414,0.00820361,66213.0,66212.0,0.362472]
[1722306375737,0.00820361,66214.0,66213.0,0.362466]
[1722306375936,0.01020361,66214.0,66213.0,0.51309904]
[1722306376126,0.02020361,66214.0,66213.0,0.51309904]
[1722306376922,0.01820361,66214.0,66213.0,0.51309904]
[1722306377123,0.04189055,66214.0,66213.0,0.51309904]
[1722306377328,0.00820361,66214.0,66213.0,0.75474304]
[1722306377591,0.00920361,66214.0,66213.0,0.75474304]
[1722306377762,0.06465077,66218.0,66217.0,0.362443]
[1722306377981,0.06465077,66218.0,66217.0,0.37742548]
[1722306378326,0.01,66221.0,66220.0,0.120809]
[1722306378548,0.01,66221.0,66220.0,0.27144204]
[1722306378768,0.01,66221.0,66220.0,0.75467804]
[1722306379187,0.00083,66222.0,66221.0,0.604037]
[1722306379404,0.00083,66222.0,66221.0,1.16258504]
[1722306379604,0.47691,66244.0,66221.0,1.16258504]
[1722306379605,0.01,66239.0,66234.0,0.665217]
[1722306379785,0.002,66239.0,66234.0,0.83083252]
[1722306380197,0.01,66239.0,66234.0,0.83083252]
[1722306380414,0.002,66242.0,66234.0,0.83083252]
[1722306380637,0.47691,66244.0,66234.0,0.83083252]
[1722306380798,0.03219093,66235.0,66234.0,1.07239952]
[1722306380998,0.03219093,66235.0,66234.0,0.85383252]
[1722306381405,0.04219093,66235.0,66234.0,0.85383252]
[1722306381614,0.04219093,66235.0,66234.0,0.58926552]
[1722306381826,0.40653693,66235.0,66234.0,0.01498248]
[1722306381997,1.30143116,66235.0,66234.0,0.01498248]
[1722306382201,1.05986716,66235.0,66234.0,0.01498248]
[1722306382415,0.84226716,66235.0,66234.0,0.01498248]
[1722306382611,0.84326716,66235.0,66234.0,0.02198248]
[1722306383038,0.35913916,66235.0,66234.0,0.01498248]
[1722306383238,0.22835716,66235.0,66234.0,0.01498248]
[1722306383443,0.24435716,66235.0,66234.0,0.01598248]
[1722306383616,0.18305716,66235.0,66234.0,0.01598248]
[1722306384023,0.09585716,66235.0,66234.0,0.01498248]
[1722306384404,0.10385716,66235.0,66234.0,0.01598248]
[1722306385127,0.12753879,66235.0,66234.0,0.001]
[1722306385542,0.12753879,66235.0,66231.0,0.120788]
[1722306385543,0.01,66233.0,66231.0,0.120788]
[1722306385746,0.10753879,66235.0,66234.0,0.120783]
[1722306385959,0.11453879,66235.0,66234.0,0.82115004]
[1722306386295,0.10753879,66235.0,66234.0,0.82115004]
[1722306386634,0.08385716,66235.0,66234.0,0.82115004]
[1722306387980,0.08885716,66235.0,66234.0,0.58058304]
[1722306388194,0.46320316,66235.0,66234.0,0.001]
[1722306388368,0.61090316,66235.0,66234.0,0.001]
[1722306388537,0.23855716,66235.0,66234.0,0.001]
[1722306388736,0.18315716,66235.0,66234.0,0.001]
[1722306388958,0.30393916,66235.0,66234.0,0.001]
[1722306389158,0.120784,66234.0,66231.0,0.01498248]
[1722306389388,0.012,66232.0,66231.0,0.01498248]
[1722306389694,0.615937,66232.0,66231.0,0.01498248]
[1722306389854,0.605937,66232.0,66231.0,0.01498248]
[1722306390052,0.63961952,66232.0,66231.0,0.01498248]
[1722306390465,0.69501952,66232.0,66231.0,0.01498248]
[1722306391082,0.671337,66232.0,66231.0,0.01498248]
[1722306391626,0.439762,66232.0,66231.0,0.01498248]
[1722306392162,0.681337,66232.0,66231.0,0.01498248]
[1722306393862,0.01,66232.0,66231.0,0.01498248]
[1722306394689,0.01,66231.0,66229.0,0.120792]
[1722306395036,0.01,66231.0,66229.0,0.13577448]
[1722306396013,0.01,66231.0,66230.0,0.362373]
[1722306396474,0.002,66234.0,66231.0,0.120788]
[1722306396669,0.01,66231.0,66230.0,0.362373]
[1722306396876,0.012,66231.0,66230.0,0.120791]
[1722306397092,0.012,66230.0,66229.0,0.07728248]
[1722306397975,0.012,66230.0,66229.0,0.19807548]
[1722306398391,0.01,66230.0,66229.0,0.19807548]
[1722306398981,0.01,66230.0,66229.0,0.01498248]
[1722306398982,0.012,66230.0,66229.0,0.01498248]
[1722306399221,0.002,66231.0,66229.0,0.01498248]
[1722306399395,0.16615716,66235.0,66231.0,0.120788]
[1722306399699,0.01,66230.0,66229.0,0.37936148]
[1722306400125,0.01,66230.0,66229.0,0.37736148]
[1722306400322,0.01,66230.0,66229.0,0.52799452]
[1722306400529,0.001,66231.0,66230.0,0.603955]
[1722306400795,0.011,66231.0,66230.0,0.51300604]
[1722306401403,0.011,66231.0,66230.0,0.15063304]
[1722306401605,0.012,66230.0,66229.0,0.01598248]
[1722306401841,0.012,66230.0,66229.0,0.01498248]
[1722306402244,0.012,66230.0,66229.0,0.01698248]
[1722306403767,0.03568227,66230.0,66229.0,0.01698248]
[1722306404349,0.15647327,66230.0,66229.0,0.01698248]
[1722306404691,0.14447327,66230.0,66229.0,0.01698248]
[1722306404888,0.15647327,66230.0,66229.0,0.01698248]
[1722306405187,0.02568227,66230.0,66229.0,0.01698248]
[1722306405427,0.03568227,66230.0,66229.0,0.01698248]
[1722306405616,0.03368227,66230.0,66229.0,0.01698248]
[1722306405793,0.03368227,66230.0,66229.0,0.13777548]
[1722306406218,0.02368227,66230.0,66229.0,0.13777548]
[1722306406523,0.02368227,66230.0,66229.0,0.77158052]
[1722306406728,0.02368227,66230.0,66229.0,0.79458052]
[1722306406887,0.02368227,66230.0,66229.0,0.77959804]
[1722306407786,0.03368227,66230.0,66229.0,0.77959804]
[1722306408124,0.54475527,66230.0,66229.0,0.002]
[1722306408273,0.54675527,66230.0,66229.0,0.002]
[1722306408483,0.87215338,66230.0,66229.0,0.002]
[1722306408969,0.95591705,66230.0,66229.0,0.002]
[1722306409480,0.87215338,66230.0,66229.0,0.002]
[1722306409999,0.87181078,66230.0,66229.0,0.002]
[1722306410368,0.87175909,66230.0,66229.0,0.002]
[1722306411620,0.78799467,66230.0,66229.0,0.002]
[1722306411876,0.79584999,66230.0,66229.0,0.002]
[1722306412235,1.12046232,66230.0,66229.0,0.002]
[1722306412413,1.43178968,66230.0,66229.0,0.002]
[1722306412613,1.54530195,66230.0,66229.0,0.002]
[1722306412816,1.2825764,66230.0,66229.0,0.002]
[1722306413232,1.28270103,66230.0,66229.0,0.002]
[1722306413439,1.28425523,66230.0,66229.0,0.002]
[1722306413630,1.52583723,66230.0,66229.0,0.002]
[1722306414002,1.52328303,66230.0,66229.0,0.002]
[1722306414404,1.53428303,66230.0,66229.0,0.003]
[1722306414615,1.80840753,66230.0,66229.0,0.002]
[1722306414779,1.67482426,66230.0,66229.0,0.002]
[1722306414940,1.44339535,66230.0,66229.0,0.003]
[1722306415143,1.44339535,66230.0,66229.0,0.002]
[1722306415144,1.43621988,66230.0,66229.0,0.002]
[1722306415339,1.67780188,66230.0,66229.0,0.002]
[1722306415547,1.66259097,66230.0,66229.0,0.003]
[1722306415751,1.68885127,66230.0,66229.0,0.001]
[1722306415978,1.44882347,66230.0,66229.0,0.001]
[1722306416357,1.53736774,66230.0,66229.0,0.001]
[1722306416559,1.40280841,66230.0,66229.0,0.001]
[1722306417120,1.53639085,66230.0,66229.0,0.002]
[1722306417336,1.41180841,66230.0,66229.0,0.002]
[1722306417467,1.40280841,66230.0,66229.0,0.001]
[1722306417673,1.41836261,66230.0,66229.0,0.002]
[1722306417872,1.40736261,66230.0,66229.0,0.001]
[1722306418074,1.64894461,66230.0,66229.0,0.001]
[1722306418271,1.42580841,66230.0,66229.0,0.001]
[1722306418489,1.41680841,66230.0,66229.0,0.002]
[1722306418694,1.43680841,66230.0,66229.0,0.002]
[1722306419026,1.40280841,66230.0,66229.0,0.001]
[1722306419227,1.41763841,66230.0,66229.0,0.002]
[1722306419434,1.33278532,66230.0,66229.0,0.002]
[1722306419613,1.40540892,66230.0,66229.0,0.002]
[1722306420197,1.39540892,66230.0,66229.0,0.002]
[1722306420420,1.40540892,66230.0,66229.0,0.002]
[1722306420622,1.40684546,66230.0,66229.0,0.002]
[1722306421539,1.41684546,66230.0,66229.0,0.002]
[1722306421733,1.40669711,66230.0,66229.0,0.002]
[1722306421949,1.40668112,66230.0,66229.0,0.002]
[1722306422503,1.41668112,66230.0,66229.0,0.002]
[1722306423127,1.25604808,66230.0,66229.0,0.002]
[1722306423327,1.01302954,66230.0,66229.0,0.002]
[1722306423538,0.97357515,66230.0,66229.0,0.002]
[1722306423895,0.75586103,66230.0,66229.0,0.002]
[1722306424410,0.75586103,66230.0,66229.0,0.508179]
[1722306424411,0.07050603,66230.0,66229.0,0.508179]
[1722306424614,0.09309318,66230.0,66229.0,0.1458]
[1722306424899,0.02583,66230.0,66229.0,0.1458]
[1722306425019,0.02583,66230.0,66229.0,0.266593]
[1722306425020,0.03783,66230.0,66229.0,0.266593]
[1722306425226,0.03783,66230.0,66229.0,0.265593]
[1722306425227,0.02383,66230.0,66229.0,0.265593]
[1722306425651,0.08266444,66230.0,66229.0,0.186493]
[1722306425851,0.08266288,66230.0,66229.0,0.0657]
[1722306426314,0.03783,66230.0,66229.0,0.0657]
[1722306426671,0.08266884,66230.0,66229.0,0.186493]
[1722306426895,0.03783,66230.0,66229.0,0.428079]
[1722306427094,0.08266901,66230.0,66229.0,0.428079]
[1722306427347,0.03783,66230.0,66229.0,0.428079]
[1722306427616,0.03783,66230.0,66229.0,0.186493]
[1722306428033,0.02583,66230.0,66229.0,0.186493]
[1722306428413,0.07067898,66230.0,66229.0,0.186493]
[1722306428819,0.02583,66230.0,66229.0,0.186493]
[1722306429195,0.03783,66230.0,66229.0,0.186493]
[1722306429534,0.02683,66230.0,66229.0,0.185493]
[1722306429734,0.03483,66230.0,66229.0,0.186493]
[1722306429945,0.10200391,66230.0,66229.0,0.0657]
[1722306430121,0.10200391,66230.0,66229.0,0.001]
[1722306430122,0.147521,66230.0,66229.0,0.001]
[1722306430324,0.21479569,66230.0,66229.0,0.001]
[1722306430524,0.78018366,66230.0,66229.0,0.001]
[1722306430725,0.68048512,66230.0,66229.0,0.001]
[1722306430923,0.80078539,66230.0,66229.0,0.001]
[1722306431094,0.618685,66230.0,66229.0,0.001]